bitfinex/quotes_ETHUSD_20220112
["timestamp","ask_amount","ask_price","bid_price","bid_amount"]
[1641947403117,2.31126,3246.0,3244.9,1.33192752]
[1641947403317,1.54084,3246.0,3244.9,1.63192752]
[1641947403524,2.97406907,3246.0,3245.0,1.10239095]
[1641947403720,1.43322907,3246.0,3245.1,2.68442687]
[1641947404122,2.20363907,3246.0,3245.1,2.68442687]
[1641947404322,0.77042,3245.7,3245.1,2.68442687]
[1641947404927,0.80352,3246.4,3245.2,19.08]
[1641947404928,0.03309,3246.4,3245.2,19.08]
[1641947405126,6.11,3246.6,3245.4,0.770187]
[1641947405328,6.8802,3246.6,3245.5,3.61461287]
[1641947405597,6.8802,3246.6,3245.5,4.33361019]
[1641947405996,6.8802,3246.6,3245.5,3.56341019]
[1641947406197,6.91329,3246.6,3245.5,3.56341019]
[1641947406597,6.14309,3246.6,3246.4,1.08749778]
[1641947406800,6.11,3246.6,3246.4,1.08749778]
[1641947406999,6.49652567,3247.2,3246.5,2.56268436]
[1641947407198,6.46343567,3247.2,3246.5,2.56268436]
[1641947407397,0.00227369,3246.6,3246.5,2.56268436]
[1641947407599,0.00227369,3246.6,3246.5,4.02603352]
[1641947408198,0.00227369,3246.6,3246.4,4.18749778]
[1641947408399,0.00227369,3246.6,3246.4,6.6851907]
[1641947408700,0.00170527,3246.5,3246.4,4.18749778]
[1641947408901,0.00170527,3246.5,3246.4,6.89454048]
[1641947409319,0.38094432,3246.5,3246.4,6.89454048]
[1641947409518,0.76018337,3246.5,3246.4,6.89454048]
[1641947410323,0.76018337,3246.5,3246.4,3.1]
[1641947411124,2.94327337,3246.5,3246.4,3.1]
[1641947411324,4.3586593,3246.5,3246.4,3.1]
[1641947411629,6.4289293,3246.5,3246.4,3.1]
[1641947411825,4.3,3246.4,3245.1,8.5878]
[1641947412025,0.03309,3246.3,3245.1,8.5878]
[1641947412227,3.25210369,3246.3,3245.2,0.00568424]
[1641947412424,0.77052,3245.8,3245.2,0.00568424]
[1641947412631,1.55848278,3245.3,3245.2,0.00568424]
[1641947413262,0.03309,3245.5,3245.2,0.00568424]
[1641947413459,0.03309,3245.9,3245.0,0.00682108]
[1641947413658,0.77036,3246.1,3245.2,0.77034]
[1641947413859,0.03309,3246.0,3245.2,0.77034]
[1641947414061,0.7703782,3246.2,3245.3,0.00511581]
[1641947414259,1.17349912,3245.8,3245.3,0.00511581]
[1641947414662,0.37923905,3245.6,3245.1,0.00625266]
[1641947415065,0.37923905,3245.4,3245.1,0.00625266]
[1641947415266,1.14974905,3245.4,3245.1,0.00625266]
[1641947415668,0.03309,3245.3,3245.0,0.00682108]
[1641947415863,0.03309,3245.3,3244.8,0.00795793]
[1641947416067,0.37923905,3245.4,3244.8,0.00795793]
[1641947416467,0.37923905,3245.4,3244.9,1.18832038]
[1641947416918,0.37923905,3245.4,3245.0,0.00682108]
[1641947417319,1.14975905,3245.4,3245.0,0.00682108]
[1641947418323,1.14975905,3245.4,3245.0,3.10682108]
[1641947418722,0.37923905,3245.4,3245.1,0.00625266]
[1641947419922,0.37923905,3245.2,3245.1,0.00625266]
[1641947420322,0.7584781,3245.2,3245.1,0.00625266]
[1641947420760,1.5621781,3245.2,3245.1,0.00625266]
[1641947421966,4.2121781,3245.2,3245.1,0.00625266]
[1641947422567,4.5121781,3245.2,3245.1,0.00625266]
[1641947424467,8.71724086,3245.2,3245.1,0.00625266]
[1641947424666,5.8,3245.1,3245.0,3.01105387]
[1641947424870,5.8,3245.1,3244.1,3.94020689]
[1641947424871,0.7709017,3244.7,3244.1,3.94020689]
[1641947425067,0.77096,3244.5,3244.1,3.94020689]
[1641947425266,0.77096,3244.5,3244.2,0.00511581]
[1641947425267,0.03309,3244.4,3244.2,0.00511581]
[1641947425467,0.33309,3244.4,3244.2,0.00511581]
[1641947425672,5.70422228,3244.3,3244.2,0.00511581]
[1641947426066,7.30422228,3244.3,3244.2,0.00511581]
[1641947426273,8.07522228,3244.3,3244.2,0.00511581]
[1641947426566,7.54622228,3244.3,3244.2,0.00511581]
[1641947426768,8.31721808,3244.3,3244.2,0.00511581]
[1641947427170,4.11721808,3244.3,3244.2,0.00511581]
[1641947427666,4.11721808,3244.3,3244.2,3.10511581]
[1641947428771,4.11721808,3244.3,3244.2,0.00511581]
[1641947429069,4.11721808,3244.3,3244.1,3.8953227]
[1641947430780,0.37923905,3244.2,3244.1,3.8953227]
[1641947430976,7.9084781,3244.2,3244.1,3.78475611]
[1641947431176,7.9084781,3244.2,3242.7,4.8448]
[1641947431177,0.77113,3243.4,3242.7,4.8448]
[1641947431677,0.77113,3243.4,3242.8,0.00795793]
[1641947431678,1.07113,3243.4,3242.8,0.00795793]
[1641947431942,0.77122,3243.3,3242.8,0.00795793]
[1641947432142,1.27553205,3243.2,3242.8,0.00795793]
[1641947432341,2.04668205,3243.2,3242.8,0.00795793]
[1641947432544,0.7712,3243.1,3242.8,0.00795793]
[1641947432742,1.5423647,3243.1,3242.8,0.00795793]
[1641947433446,0.77126,3242.7,3242.4,0.01023162]
[1641947433846,1.5425003,3242.7,3242.4,0.01023162]
[1641947434046,1.5424806,3242.9,3242.1,0.0119369]
[1641947434443,1.8424806,3242.9,3242.1,0.0119369]
[1641947434643,1.54259,3242.5,3241.8,1.55540999]
[1641947435043,1.54259,3242.5,3241.9,0.01307374]
[1641947436069,0.37923905,3242.2,3241.9,0.01307374]
[1641947436472,0.37923905,3242.0,3241.9,0.01307374]
[1641947436873,0.37923905,3242.0,3241.9,4.61307374]
[1641947439075,0.37923905,3242.0,3241.9,5.51307374]
[1641947439519,1.15056905,3242.0,3241.9,0.91307374]
[1641947439720,3.50056905,3242.0,3241.9,0.91307374]
[1641947440723,4.1,3241.9,3240.9,3.9977]
[1641947440920,0.77158,3241.4,3240.9,3.9977]
[1641947441119,0.77158,3241.4,3240.8,3.9214]
[1641947441120,0.77158,3241.4,3241.0,0.00511581]
[1641947441320,0.37923905,3241.2,3241.0,0.00511581]
[1641947441525,0.37923905,3241.2,3240.9,0.00568424]
[1641947441724,0.37923905,3241.0,3240.9,0.00568424]
[1641947441928,1.57267898,3241.0,3240.9,0.00568424]
[1641947442528,1.57267898,3241.0,3240.7,0.00682108]
[1641947442728,1.60576898,3241.0,3240.7,0.00682108]
[1641947443580,0.77173,3240.8,3240.7,0.00682108]
[1641947445980,0.77173,3240.8,3240.6,1.49797915]
[1641947446584,0.37923905,3240.7,3240.6,1.49797915]
[1641947447033,0.7584781,3240.7,3240.6,1.49797915]
[1641947449529,0.7584781,3240.7,3240.6,4.20517889]
[1641947450674,0.7584781,3240.7,3240.6,5.60361251]
[1641947451374,0.7584781,3240.7,3240.6,4.10563336]
[1641947453982,0.7584781,3240.7,3240.6,4.05563336]
[1641947454181,0.7084781,3240.7,3240.6,9.55063336]
[1641947454421,0.37923905,3240.7,3240.6,4.50063336]
[1641947454823,0.7084781,3240.7,3240.6,4.50063336]
[1641947455621,0.7084781,3240.7,3240.6,6.80063336]
[1641947457026,0.7084781,3240.7,3240.6,8.10063336]
[1641947457428,0.7084781,3240.7,3240.6,26.18063336]
[1641947458690,0.7084781,3240.7,3240.6,24.88063336]
[1641947459095,0.7084781,3240.7,3240.6,25.18063336]
[1641947459293,0.7084781,3240.7,3240.6,26.18063336]
[1641947460195,0.7084781,3240.7,3240.6,26.48063336]
[1641947460692,0.7084781,3240.7,3240.6,26.43063336]
[1641947460895,0.6584781,3240.7,3240.6,26.43063336]
[1641947461094,0.32923905,3240.7,3240.6,26.50776336]
[1641947461497,0.6584781,3240.7,3240.6,26.50776336]
[1641947461710,0.03309,3241.8,3240.7,5.85]
[1641947461926,0.03309,3242.1,3241.3,0.77121]
[1641947462228,0.00454738,3241.5,3241.4,3.14735966]
[1641947462635,1.54339496,3241.8,3241.4,2.52131756]
[1641947462827,0.03309,3241.7,3241.4,2.52131756]
[1641947463026,0.03877423,3241.7,3241.4,2.52131756]
[1641947463228,0.00511581,3241.6,3241.4,2.52131756]
[1641947468876,0.00511581,3241.6,3241.2,3.9118]
[1641947468877,0.00511581,3241.6,3241.2,6.51518421]
[1641947469078,0.03309,3241.5,3241.2,6.51518421]
[1641947469334,0.00511581,3241.6,3241.2,6.51518421]
[1641947469530,0.00397896,3241.4,3241.2,6.51518421]
[1641947469728,0.00397896,3241.4,3241.3,6.01536704]
[1641947469927,1.57646496,3241.8,3241.4,1.22839933]
[1641947470328,0.00568423,3241.7,3241.4,1.22839933]
[1641947470729,0.00511581,3241.6,3241.4,1.22839933]
[1641947471130,0.00454738,3241.5,3241.4,1.22839933]
[1641947471331,0.00454738,3241.5,3241.4,4.57839933]
[1641947471530,0.00454738,3241.5,3241.4,7.17433426]
[1641947473775,0.00454738,3241.5,3241.4,3.82433426]
[1641947474177,0.00454738,3241.5,3241.4,2.59593493]
[1641947478851,0.00454738,3241.5,3241.2,3.9118]
[1641947479152,0.00397896,3241.4,3241.2,3.9118]
[1641947479550,0.00341054,3241.3,3241.2,3.9118]
[1641947479751,0.00341054,3241.3,3240.7,2.50395345]
[1641947479950,1.42028448,3240.9,3240.6,3.8656]
[1641947480150,0.03589211,3241.2,3240.4,11.45016603]
[1641947480349,0.03589211,3241.2,3240.7,1.43014232]
[1641947480568,0.00227369,3241.1,3240.8,2.56589198]
[1641947480768,0.03302,3241.0,3240.8,2.56589198]
[1641947480971,0.00170527,3241.0,3240.8,2.56589198]
[1641947481170,0.00113684,3240.9,3240.7,5.37404321]
[1641947481571,0.00113684,3240.9,3240.7,3.94390089]
[1641947481769,0.00113684,3240.9,3240.7,6.45478888]
[1641947481976,0.00113684,3240.9,3240.7,3.94390089]
[1641947482376,0.00113684,3240.9,3240.7,6.45462135]
[1641947482877,0.00113684,3240.9,3240.8,6.03398381]
[1641947484330,0.00113684,3240.9,3240.8,4.8]
[1641947485124,0.00113684,3240.9,3240.7,3.94390089]
[1641947485328,0.03309,3240.8,3240.7,3.94390089]
[1641947486130,0.03309,3240.8,3240.6,2.35331812]
[1641947486131,3.15,3240.7,3240.6,2.35331812]
[1641947486327,0.03318,3240.7,3240.4,3.13775749]
[1641947486526,1.0,3240.6,3240.4,3.13775749]
[1641947486725,0.03327,3240.5,3240.4,3.13775749]
[1641947486927,0.33336,3240.6,3240.4,3.13775749]
[1641947487127,0.77187,3240.5,3240.4,3.13775749]
[1641947487330,0.03345,3240.5,3240.4,3.13775749]
[1641947487528,0.00113684,3240.7,3240.4,3.13775749]
[1641947488685,1.5433892,3240.6,3240.4,3.13775749]
[1641947490490,3.1433892,3240.6,3240.4,3.13775749]
[1641947490691,2.8433892,3240.6,3240.4,3.13775749]
[1641947491294,0.7718376,3240.4,3240.2,1.0313277]
[1641947491493,0.77182,3240.3,3240.2,1.0313277]
[1641947491693,0.03364684,3240.7,3240.3,0.00113685]
[1641947492748,0.77176,3240.5,3240.3,0.00113685]
[1641947493149,0.80710865,3240.7,3240.3,0.00113685]
[1641947493851,0.7717,3240.6,3240.3,0.00113685]
[1641947494952,0.7717619,3240.5,3240.3,0.00113685]
[1641947495148,1.54343,3240.6,3240.3,0.00113685]
[1641947496381,0.03309,3240.5,3240.3,0.00113685]
[1641947496679,0.77176,3240.4,3240.3,0.00113685]
[1641947500831,1.07176,3240.4,3240.3,0.00113685]
[1641947501231,1.10485,3240.4,3240.3,0.00113685]
[1641947501635,0.80485,3240.4,3240.3,0.00113685]
[1641947502235,0.77176,3240.4,3240.3,0.00113685]
[1641947503885,0.80710865,3240.7,3240.3,0.00113685]
[1641947504986,0.77174,3240.6,3240.3,0.00113685]
[1641947505188,1.54344,3240.6,3240.3,0.00113685]
[1641947505387,0.7717,3240.6,3240.3,0.00113685]
[1641947506187,1.54343,3240.6,3240.3,0.00113685]
[1641947507635,0.7717,3240.6,3240.3,0.00113685]
[1641947508633,0.00113684,3240.7,3240.3,0.00113685]
[1641947509635,0.7717,3240.6,3240.3,0.00113685]
[1641947510436,0.00113684,3240.7,3240.3,0.00113685]
[1641947512290,0.77165,3240.6,3240.3,0.00113685]
[1641947512886,1.54333,3240.6,3240.3,0.00113685]
[1641947513087,1.54333,3240.6,3240.2,0.73246455]
[1641947513490,0.77172,3240.4,3240.2,0.73246455]
[1641947515936,0.00113684,3240.5,3240.2,0.73246455]
[1641947516336,0.00113684,3240.5,3240.3,2.95809299]
[1641947516636,0.00113684,3240.5,3240.4,6.8]
[1641947516834,0.00113684,3240.5,3240.4,19.04718794]
[1641947517234,0.00113684,3240.5,3240.4,20.40110499]
[1641947517635,0.00113684,3240.5,3240.4,21.51515561]
[1641947518685,0.00113684,3240.5,3240.4,19.40110499]
[1641947520389,0.00113684,3240.5,3240.4,20.70110499]
[1641947520593,0.00113684,3240.5,3240.4,23.33107672]
[1641947520790,0.00113684,3240.5,3240.4,23.63107672]
[1641947520993,0.00113684,3240.5,3240.4,22.03107672]
[1641947521393,0.00113684,3240.5,3240.4,11.60167264]
[1641947521694,0.03422684,3240.5,3240.4,2.62997173]
[1641947522735,0.00113684,3240.5,3240.4,2.62997173]
[1641947524734,0.00113684,3240.5,3240.4,6.42997173]
[1641947530734,0.00113684,3240.5,3240.4,3.8]
[1641947534677,0.00113684,3240.5,3240.4,5.8]
[1641947534877,0.03316,3241.2,3240.4,5.8]
[1641947535080,0.75580684,3241.3,3240.8,1.19447015]
[1641947535280,0.00341055,3241.1,3240.8,1.19447015]
[1641947535681,0.00284213,3241.0,3240.8,1.19447015]
[1641947536079,0.0022737,3240.9,3240.8,1.19447015]
[1641947536279,0.0022737,3240.9,3240.3,1.0]
[1641947536479,0.0022737,3240.9,3240.2,2.94896455]
[1641947536679,0.00170528,3240.8,3240.2,2.94896455]
[1641947536930,0.00170528,3240.8,3240.3,0.00113684]
[1641947537131,0.00113686,3240.7,3240.3,0.00113684]
[1641947537632,0.75580684,3241.3,3240.5,1.16108324]
[1641947537633,0.00397897,3241.2,3240.5,1.16108324]
[1641947538434,0.77153,3241.1,3240.5,1.16108324]
[1641947538835,0.00284213,3241.0,3240.5,1.16108324]
[1641947539236,0.0022737,3240.9,3240.5,1.16108324]
[1641947539735,0.00170528,3240.8,3240.5,1.16108324]
[1641947540136,0.00113686,3240.7,3240.5,1.16108324]
[1641947540603,0.00568424,3241.5,3240.5,1.16108324]
[1641947541004,0.00511582,3241.4,3240.5,1.16108324]
[1641947541503,0.0045474,3241.3,3240.5,1.16108324]
[1641947541704,0.0045474,3241.3,3240.5,1.93253324]
[1641947541905,0.00397897,3241.2,3240.5,1.93253324]
[1641947542206,1.54859424,3241.5,3240.5,1.93253324]
[1641947542405,1.54859424,3241.5,3240.5,3.16233324]
[1641947542704,0.00511582,3241.4,3240.5,2.39088324]
[1641947543104,0.0045474,3241.3,3240.5,2.39088324]
[1641947543404,0.00397897,3241.2,3240.5,1.2298]
[1641947546836,0.77550897,3241.2,3240.5,1.2298]
[1641947547636,0.00397897,3241.2,3240.5,2.2298]
[1641947547838,0.00397897,3241.2,3240.7,0.04363197]
[1641947548086,0.00397897,3241.2,3240.9,0.04942433]
[1641947548283,0.00397897,3241.2,3241.0,0.4626626]
[1641947548485,0.00397897,3241.2,3241.1,9.448]
[1641947549690,0.00397897,3241.2,3241.1,12.58779808]
[1641947549890,0.00397897,3241.2,3241.1,15.34735265]
[1641947550494,0.00397897,3241.2,3241.1,6.78779808]
[1641947550694,0.00397897,3241.2,3241.1,3.648]
[1641947551490,0.00397897,3241.2,3241.1,6.098]
[1641947552137,0.00397897,3241.2,3241.1,3.648]
[1641947555237,0.00397897,3241.2,3240.9,1.2228]
[1641947555437,0.00397897,3241.2,3240.6,3.5718]
[1641947556084,0.00397897,3241.2,3240.7,2.53860719]
[1641947556382,0.00397897,3241.2,3240.6,3.5718]
[1641947556582,0.77542897,3241.2,3240.6,3.5718]
[1641947557183,0.77542897,3241.2,3240.7,2.62169367]
[1641947557384,0.77542897,3241.2,3240.7,2.58841947]
[1641947557385,0.00397897,3241.2,3240.7,2.58841947]
[1641947557586,0.00397897,3241.2,3240.6,3.5718]
[1641947557789,0.00397897,3241.2,3240.7,2.55855292]
[1641947558190,0.00397897,3241.2,3240.7,2.62765525]
[1641947558390,0.00397897,3241.2,3240.6,3.5718]
[1641947559842,0.77542897,3241.2,3240.7,2.53741699]
[1641947560042,0.77542897,3241.2,3240.6,3.5718]
[1641947563076,0.00397897,3241.2,3240.7,2.57043656]
[1641947563282,0.00397897,3241.2,3240.6,3.5718]
[1641947566687,0.00397897,3241.2,3240.7,2.54266828]
[1641947566929,0.00397897,3241.2,3240.6,3.5718]
[1641947568633,0.00397897,3241.2,3240.7,2.53689903]
[1641947568836,0.00397897,3241.2,3240.6,3.5718]
[1641947569632,0.77543897,3241.2,3240.6,3.5718]
[1641947570882,0.77543897,3241.2,3240.8,2.63022216]
[1641947579087,1.11349423,3240.9,3240.8,2.63022216]
[1641947579589,1.11576793,3240.9,3240.8,2.63022216]
[1641947580188,0.0022737,3240.9,3240.8,5.23022216]
[1641947582358,0.0022737,3240.9,3240.8,2.6]
[1641947586077,0.0022737,3240.9,3240.8,5.2]
[1641947587084,0.0022737,3240.9,3240.8,2.6]
[1641947588484,0.00846069,3240.8,3240.4,12.2878]
[1641947588686,0.0022737,3240.9,3240.2,0.73246455]
[1641947588687,3.22559588,3240.9,3240.2,0.73246455]
[1641947588888,0.00113686,3240.7,3240.2,0.73246455]
[1641947589083,0.00170528,3240.8,3240.2,0.73246455]
[1641947589530,1.18580103,3240.3,3240.2,0.73246455]
[1641947589930,1.18580103,3240.3,3240.2,0.73416981]
[1641947590334,2.25752103,3240.3,3240.2,0.73416981]
[1641947592236,1.95752103,3240.3,3240.2,0.73416981]
[1641947592433,0.77168,3240.4,3240.2,0.73416981]
[1641947592939,0.77156,3240.7,3240.3,0.00113684]
[1641947593218,0.77156,3240.7,3240.2,0.73246455]
[1641947593219,0.77156,3240.7,3240.2,0.70017328]
[1641947593421,1.43470552,3240.5,3240.2,0.65017328]
[1641947593718,2.26649528,3240.8,3240.3,2.45]
[1641947594019,2.26649528,3240.8,3240.3,2.45170528]
[1641947594318,2.26649528,3240.8,3240.3,0.00170528]
[1641947594536,0.77161,3240.5,3240.3,0.00170528]
[1641947594717,1.44846125,3240.4,3240.3,0.00170528]
[1641947599334,1.74846125,3240.4,3240.3,0.00170528]
[1641947601386,0.77161,3240.5,3240.3,0.00170528]
[1641947601585,0.77156,3240.7,3240.3,0.00170528]
[1641947602585,3.09942004,3240.9,3240.3,0.00170528]
[1641947602986,0.00113684,3240.8,3240.3,0.00170528]
[1641947603389,1.54440684,3240.8,3240.3,0.00170528]
[1641947604088,0.7716,3240.7,3240.3,0.00170528]
[1641947604338,1.0716,3240.7,3240.3,0.00170528]
[1641947606034,0.7716,3240.7,3240.3,0.00170528]
[1641947606233,0.00113684,3240.8,3240.3,0.00170528]
[1641947607538,0.77153,3240.7,3240.3,0.00170528]
[1641947608186,0.77153,3240.7,3240.3,1.33319114]
[1641947608387,0.00113684,3240.8,3240.3,0.00170528]
[1641947608586,0.77148,3240.7,3240.4,0.00113685]
[1641947609186,1.43543412,3240.6,3240.4,0.00113685]
[1641947609589,2.97858412,3240.6,3240.4,0.00113685]
[1641947610596,3.75016412,3240.6,3240.4,0.00113685]
[1641947612039,2.97858412,3240.6,3240.4,0.00113685]
[1641947613441,2.20700412,3240.6,3240.4,0.00113685]
[1641947614642,2.97859412,3240.6,3240.4,0.00113685]
[1641947615042,2.20700412,3240.6,3240.4,0.00113685]
[1641947615245,0.77157,3240.6,3240.4,0.00113685]
[1641947615444,0.77261684,3240.8,3240.5,0.00663784]
[1641947615700,0.77261684,3240.8,3240.4,0.00113685]
[1641947616099,0.77159,3240.7,3240.4,0.00113685]
[1641947616600,1.32167427,3240.5,3240.4,0.00113685]
[1641947618002,2.09331427,3240.5,3240.4,0.00113685]
[1641947622742,2.09331427,3240.5,3240.4,2.25113685]
[1641947622941,0.77158,3240.6,3240.4,2.25113685]
[1641947623185,0.00113684,3240.8,3240.4,2.25113685]
[1641947623385,0.00113684,3240.8,3240.5,0.00491966]
[1641947623687,0.00113684,3240.8,3240.4,2.25113685]
[1641947624486,0.00113684,3240.8,3240.4,3.78736266]
[1641947624687,0.77260684,3240.8,3240.4,2.25113685]
[1641947625787,1.35793279,3240.6,3240.4,2.25113685]
[1641947625989,2.12949279,3240.6,3240.4,2.25113685]
[1641947626390,0.77156,3240.6,3240.4,2.25113685]
[1641947627035,1.54316,3240.6,3240.4,2.25113685]
[1641947628641,1.10282465,3240.5,3240.4,0.00113685]
[1641947632892,1.40282465,3240.5,3240.4,0.00113685]
[1641947633291,1.10282465,3240.5,3240.4,0.00113685]
[1641947633492,1.10282465,3240.5,3240.4,2.35113685]
[1641947635232,0.77156,3240.6,3240.4,2.35113685]
[1641947639893,0.77149,3240.8,3240.4,2.35113685]
[1641947640193,1.666432,3241.4,3240.4,2.35113685]
[1641947640194,0.123462,3241.4,3240.4,2.35113685]
[1641947640492,0.00170526,3240.9,3240.4,3.50753685]
[1641947640692,0.00170526,3240.9,3240.7,1.49106232]
[1641947640892,0.00113684,3240.8,3240.7,1.49106232]
[1641947641492,0.00113684,3240.8,3240.7,5.84106232]
[1641947641943,0.00113684,3240.8,3240.7,6.84106232]
[1641947646390,0.00113684,3240.8,3240.7,5.35]
[1641947647393,0.00113684,3240.8,3240.7,6.59120386]
[1641947654791,0.00113684,3240.8,3240.7,5.35]
[1641947655991,0.00113684,3240.8,3240.5,4.3229]
[1641947656193,0.00113684,3240.8,3240.5,3.8779]
[1641947659037,0.00113684,3240.8,3240.6,2.33422795]
[1641947659237,0.00113684,3240.8,3240.6,2.77922795]
[1641947659438,0.00113684,3240.8,3240.7,5.82713]
[1641947659637,0.00113684,3240.8,3240.7,7.27213]
[1641947660244,0.00113684,3240.8,3240.7,7.195]
[1641947662292,0.00113684,3240.8,3240.7,6.195]
[1641947662494,0.00113684,3240.8,3240.7,7.195]
[1641947664939,0.00113684,3240.8,3240.7,6.195]
[1641947671290,0.7714,3241.4,3240.7,6.195]
[1641947671689,0.00397896,3241.3,3240.7,6.195]
[1641947672144,0.00341053,3241.2,3240.7,6.195]
[1641947672547,0.00284211,3241.1,3240.7,6.195]
[1641947672951,0.00227369,3241.0,3240.7,6.195]
[1641947673247,0.00170526,3240.9,3240.7,6.195]
[1641947673649,0.00113684,3240.8,3240.7,6.195]
[1641947676996,0.00113684,3240.8,3240.3,0.07713]
[1641947677194,0.86173684,3240.8,3240.3,0.07713]
[1641947678600,1.5432841,3240.7,3240.3,0.07713]
[1641947678796,1.29002197,3240.5,3240.3,0.07713]
[1641947678997,0.30113684,3240.8,3240.3,0.07713]
[1641947679441,0.00113684,3240.8,3240.3,0.07713]
[1641947679839,0.77165,3240.5,3240.3,0.07713]
[1641947680042,0.77165,3240.5,3240.2,0.65017328]
[1641947680442,0.77165,3240.5,3240.3,0.00170528]
[1641947680640,1.49948109,3240.8,3240.3,0.00170528]
[1641947681640,0.77157,3240.7,3240.3,0.00170528]
[1641947682844,2.5,3240.6,3240.3,0.00170528]
[1641947684486,2.5,3240.5,3240.3,0.00170528]
[1641947685086,0.77163,3240.6,3240.3,0.00170528]
[1641947685788,1.37168,3240.5,3240.3,0.00170528]
[1641947686392,0.77182,3240.1,3239.6,0.07714]
[1641947686591,1.4448886,3240.3,3239.6,0.07714]
[1641947686844,2.31571,3240.0,3239.7,0.00341054]
[1641947687442,2.31572,3239.9,3239.7,0.00341054]
[1641947687642,1.90501563,3239.8,3239.7,0.00341054]
[1641947689946,2.67689563,3239.8,3239.7,0.00341054]
[1641947690145,0.29823404,3239.8,3239.7,0.00341054]
[1641947690345,0.77168,3240.1,3239.7,0.00341054]
[1641947691005,0.77168,3240.1,3239.6,0.00397896]
[1641947691206,1.12470687,3239.8,3239.6,0.00397896]
[1641947692408,1.89653067,3239.8,3239.6,0.00397896]
[1641947692611,0.77182,3239.7,3239.6,0.00397896]
[1641947695044,1.15092675,3239.7,3239.6,0.00397896]
[1641947699694,0.37910675,3239.7,3239.6,0.00397896]
[1641947700897,1.15098675,3239.7,3239.6,0.00397896]
[1641947701496,1.92286005,3239.7,3239.6,0.00397896]
[1641947702347,1.15098675,3239.7,3239.6,0.00397896]
[1641947702748,1.15098675,3239.7,3239.6,2.90397896]
[1641947702749,0.37910675,3239.7,3239.6,2.90397896]
[1641947704050,0.77172,3240.1,3239.6,2.90397896]
[1641947704455,1.07172,3240.1,3239.6,2.90397896]
[1641947705054,0.77174,3240.0,3239.6,4.14688571]
[1641947705694,0.77174,3240.0,3239.6,6.70443717]
[1641947705898,1.666829,3240.7,3239.7,1.0]
[1641947706097,1.666829,3240.7,3239.8,2.66716099]
[1641947706396,0.77166,3240.4,3239.9,0.00227369]
[1641947706598,0.77166,3240.4,3239.9,1.00227369]
[1641947706797,0.77166,3240.4,3239.9,0.00227369]
[1641947707096,0.77166,3240.4,3239.9,1.00227369]
[1641947707299,0.77166,3240.4,3239.9,0.00227369]
[1641947707497,0.77166,3240.4,3239.7,3.75428045]
[1641947707498,0.77166,3240.4,3240.0,0.00170527]
[1641947707697,0.77166,3240.4,3239.8,0.00284211]
[1641947707896,2.5,3240.1,3239.8,0.00284211]
[1641947708298,0.77166,3240.4,3239.8,0.00284211]
[1641947709101,0.3,3240.3,3239.6,3.61514211]
[1641947709346,0.3,3240.3,3239.5,2.7247706]
[1641947709347,0.6,3240.3,3239.5,2.7247706]
[1641947709538,0.77197,3239.7,3239.5,2.7247706]
[1641947709740,1.07194,3239.9,3239.6,0.00113685]
[1641947709943,0.7719225,3239.7,3239.6,0.00113685]
[1641947710140,2.13420514,3239.7,3239.6,0.00113685]
[1641947710342,2.73420514,3239.7,3239.6,0.00113685]
[1641947710544,2.13420514,3239.7,3239.6,0.00113685]
[1641947710743,2.43420514,3239.7,3239.6,0.00113685]
[1641947710942,3.20610514,3239.7,3239.6,0.00113685]
[1641947711144,3.50610514,3239.7,3239.6,0.00113685]
[1641947713205,3.20610514,3239.7,3239.6,0.00113685]
[1641947713406,2.90610514,3239.7,3239.6,0.00113685]
[1641947713605,3.50610514,3239.7,3239.6,0.00113685]
[1641947714105,3.50610514,3239.7,3239.5,2.7247706]
[1641947714106,5.0,3239.6,3239.5,2.7247706]
[1641947715107,4.85,3239.5,3238.8,3.6584]
[1641947715308,6.07684312,3239.3,3238.3,1.228]
[1641947715508,9.80280011,3239.3,3238.3,1.228]
[1641947715708,2.65,3239.2,3238.3,1.228]
[1641947715907,3.4919532,3239.1,3238.3,1.228]
[1641947716106,4.0148832,3239.1,3238.4,0.00682108]
[1641947716308,2.5,3238.5,3238.4,0.00682108]
[1641947716507,2.5,3238.5,3238.3,1.13482108]
[1641947716711,2.5,3238.5,3238.2,7.1964]
[1641947716963,2.5,3238.4,3238.2,7.1964]
[1641947717163,2.5,3238.4,3237.8,1.1398]
[1641947717465,2.5,3238.4,3237.6,3.8731]
[1641947717466,1.27692327,3237.7,3237.6,3.8731]
[1641947717667,2.13062327,3237.7,3237.4,0.0772]
[1641947718665,1.54479,3237.6,3237.4,0.0772]
[1641947718863,1.54479,3237.6,3237.3,0.9812777]
[1641947719268,1.54479,3237.6,3237.4,0.00568424]
[1641947719865,1.27692327,3237.7,3237.4,0.00568424]
[1641947720368,3.38391448,3238.3,3237.4,0.00568424]
[1641947720369,0.07706,3238.3,3237.4,0.00568424]
[1641947720894,0.7723182,3237.9,3237.4,0.00568424]
[1641947721293,2.20792432,3238.0,3237.4,0.00568424]
[1641947722100,2.98018342,3238.0,3237.4,0.00568424]
[1641947723501,2.20792432,3238.0,3237.4,0.00568424]
[1641947724101,0.77229,3238.0,3237.4,0.00568424]
[1641947724947,0.8492461,3238.2,3237.6,1.42418199]
[1641947725152,0.7722,3238.2,3237.6,1.42418199]
[1641947725350,0.7722,3238.2,3237.7,0.00397897]
[1641947726149,0.77223,3238.1,3237.7,0.00397897]
[1641947726550,1.31304833,3237.9,3237.7,0.00397897]
[1641947726749,1.31304833,3237.9,3237.5,0.00511581]
[1641947727453,2.08533833,3237.9,3237.5,0.00511581]
[1641947728503,2.85762833,3237.9,3237.5,0.00511581]
[1641947728706,0.7722906,3237.8,3237.5,0.00511581]
[1641947729804,1.0722906,3237.8,3237.5,0.00511581]
[1641947730004,0.84933,3237.7,3237.5,0.00511581]
[1641947731007,0.07699,3237.7,3237.5,0.00511581]
[1641947731406,2.5,3237.7,3237.5,0.00511581]
[1641947731853,1.5446106,3237.8,3237.5,0.00511581]
[1641947732051,2.5,3237.7,3237.5,0.00511581]
[1641947732453,0.77234,3237.7,3237.5,0.00511581]
[1641947733256,3.27234,3237.7,3237.5,0.00511581]
[1641947733457,2.5,3237.7,3237.5,0.00511581]
[1641947733856,1.6217406,3237.8,3237.5,0.00511581]
[1641947734254,1.7453386,3237.8,3237.5,0.00511581]
[1641947734455,0.77234,3237.7,3237.5,0.00511581]
[1641947734853,0.973048,3237.8,3237.5,0.00511581]
[1641947735454,0.895918,3237.8,3237.5,0.00511581]
[1641947737904,0.123598,3237.8,3237.5,0.00511581]
[1641947739751,0.123598,3237.8,3237.5,1.34315068]
[1641947740151,0.123598,3237.8,3237.6,0.00454739]
[1641947740755,0.123598,3237.8,3237.6,2.71887078]